[Event "FIDE Womens Grand Swiss 2023"]
[Site "Douglas/Isle of Man"]
[Date "2023.10.25"]
[Round "1.21"]
[White "Arakhamia-Grant, Ketevan"]
[Black "Stefanova, Antoaneta"]
[Result "0-1"]
[ECO "C57"]
[WhiteElo "2297"]
[BlackElo "2424"]
[Annotator "RC"]
[PlyCount "78"]
[EventDate "2023.10.04"]
[EventType "swiss"]
[EventCountry "GBR"]
[SourceTitle "playchess.com"]
[Source "ChessBase"]
[SourceQuality "1"]
[TimeControl "40/6000+30:20/3000+30:900+30"]

1. e4 {[%emt 0:10:02]} e5 {[%emt 0:10:04]} 2. Nf3 {[%emt 0:00:05]} Nc6 {[%emt 0:00:04]} 3. Bc4 {[%emt 0:00:14]} Nf6 {[%emt 0:00:09]} 4. Ng5 {[%emt 0:03:39]} d5 {[%emt 0:01:11]} 5. exd5 {[%emt 0:00:08]} b5 {[%emt 0:07:35]} 6. Bf1 {[%emt 0:01:18]} Nxd5 {[%emt 0:00:19]} 7. Bxb5 {[%emt 0:11:52]} Bb7 {[%emt 0:02:31]} 8. d4 {[%emt 0:03:05]} exd4 {[%emt 0:06:15]} 9. O-O {[%emt 0:04:30]} Be7 {[%emt 0:46:11]} 10. Qh5 {[%emt 0:08:00]} g6 {[%emt 0:05:04]} 11. Qh6 {[%emt 0:00:31]} Qd6 {[%emt 0:04:58]} 12. Na3 {[%emt 0:14:15]} Qf6 {[%emt 0:05:05]} 13. Re1 {[%emt 0:28:17]} O-O-O {[%emt 0:01:47]} 14. Ne4 {[%emt 0:07:25]} Qf5 {[%emt 0:01:50]} 15. Ng3 {[%emt 0:01:13]} Qd7 {[%emt 0:02:01]} 16. Nc4 {[%emt 0:00:45]} Bf8 {[%emt 0:05:25]} 17. Qh4 {[%emt 0:00:56]} Be7 {[%emt 0:01:37]} 18. Bg5 {[%emt 0:08:19]} f6 {[%emt 0:01:36]} 19. Bh6 {[%emt 0:00:16]} f5 {[%emt 0:02:14]} 20. Bg5 {[%emt 0:00:40]} Bxg5 {[%emt 0:01:30]} 21. Qxg5 {[%emt 0:00:05]} Nb6 {[%emt 0:01:17]} 22. Na5 {[%emt 0:03:37]} Qd5 {[%emt 0:00:25]} 23. Nxb7 {[%emt 0:00:22]} Kxb7 {[%emt 0:00:20]} 24. Be2 {[%emt 0:00:24]} Kb8 {[%emt 0:01:48]} 25. a4 {[%emt 0:01:11]} a5 {[%emt 0:00:29]} 26. Bf3 {[%emt 0:01:14]} Qd6 {[%emt 0:00:16]} 27. Qd2 {[%emt 0:00:32]} Nc4 {[%emt 0:01:04]} 28. Qd3 {[%emt 0:00:14]} Qc5 {[%emt 0:00:35]} 29. Qb3+ {[%emt 0:01:00]} Ka7 {[%emt 0:00:33]} 30. Re6 {[%emt 0:00:09]} Rd6 {[%emt 0:00:17]} 31. Re7 {[%emt 0:01:01]} Rc8 {[%emt 0:00:43]} 32. Rae1 {[%emt 0:00:16]} Nd2 {[%emt 0:00:24]} 33. Qd3 {[%emt 0:00:47]} Nxf3+ {[%emt 0:00:13]} 34. Qxf3 {[%emt 0:00:20]} Nxe7 {[%emt 0:00:19]} 35. Rxe7 {[%emt 0:00:07]} h5 {[%emt 0:01:06]} 36. Qe2 {[%emt 0:00:24]} Rcd8 {[%emt 0:00:19]} 37. Nf1 {[%emt 0:01:05]} Rc6 {[%emt 0:00:28]} 38. h3 {[%emt 0:00:32]} Qxc2 {[%emt 0:00:34]} 39. Qb5 {[%emt 0:00:26]} Qc5 {[%emt 0:00:33]} 0-1

[Event "FIDE Womens Grand Swiss 2023"]
[Site "Douglas/Isle of Man"]
[Date "2023.10.25"]
[Round "1.22"]
[White "Bulmaga, Irina"]
[Black "Gomez Barrera, Javiera Belen"]
[Result "1-0"]
[ECO "C45"]
[WhiteElo "2423"]
[BlackElo "2266"]
[Annotator "RC"]
[PlyCount "119"]
[EventDate "2023.10.04"]
[EventType "swiss"]
[EventCountry "GBR"]
[SourceTitle "playchess.com"]
[Source "ChessBase"]
[SourceQuality "1"]
[TimeControl "40/6000+30:20/3000+30:900+30"]

1. e4 {[%emt 0:10:05]} e5 {[%emt 0:10:06]} 2. Nf3 {[%emt 0:00:08]} Nc6 {[%emt 0:00:07]} 3. d4 {[%emt 0:00:12]} exd4 {[%emt 0:00:17]} 4. Nxd4 {[%emt 0:00:08]} Nf6 {[%emt 0:00:22]} 5. Nxc6 {[%emt 0:00:37]} bxc6 {[%emt 0:00:05]} 6. Nd2 {[%emt 0:00:57]} d5 {[%emt 0:14:14]} 7. exd5 {[%emt 0:00:31]} cxd5 {[%emt 0:03:51]} 8. Bb5+ {[%emt 0:00:48]} Bd7 {[%emt 0:00:08]} 9. Bxd7+ {[%emt 0:00:48]} Qxd7 {[%emt 0:00:04]} 10. O-O {[%emt 0:00:15]} Be7 {[%emt 0:00:02]} 11. b3 {[%emt 0:01:50]} O-O {[%emt 0:02:03]} 12. Bb2 {[%emt 0:00:08]} Qf5 {[%emt 0:14:47]} 13. Re1 {[%emt 0:14:26]} Bc5 {[%emt 0:09:50]} 14. Nf3 {[%emt 0:02:23]} Rfe8 {[%emt 0:06:48]} 15. Bxf6 {[%emt 0:21:51]} Rxe1+ {[%emt 0:01:17]} 16. Qxe1 {[%emt 0:00:06]} Qxf6 {[%emt 0:00:05]} 17. Rd1 {[%emt 0:00:27]} Rd8 {[%emt 0:13:24]} 18. Qe5 {[%emt 0:03:41]} Qxe5 {[%emt 0:04:42]} 19. Nxe5 {[%emt 0:01:04]} Rd6 {[%emt 0:03:40]} 20. Kf1 {[%emt 0:03:52]} Bb6 {[%emt 0:06:10]} 21. Nd3 {[%emt 0:06:50]} Rf6 {[%emt 0:02:54]} 22. f3 {[%emt 0:01:34]} g6 {[%emt 0:03:39]} 23. a4 {[%emt 0:04:02]} c6 {[%emt 0:02:57]} 24. b4 {[%emt 0:08:07]} Bc7 {[%emt 0:03:20]} 25. h3 {[%emt 0:03:37]} Re6 {[%emt 0:01:39]} 26. Rb1 {[%emt 0:02:56]} Bg3 {[%emt 0:10:54]} 27. Rb3 {[%emt 0:06:57]} h5 {[%emt 0:00:00]} 28. Rc3 {[%emt 0:00:40]} h4 {[%emt 0:00:00]} 29. Rc5 {[%emt 0:00:54]} Rd6 {[%emt 0:00:00]} 30. Ke2 {[%emt 0:02:25]} Kf8 {[%emt 0:00:00]} 31. Ra5 {[%emt 0:02:11]} Rd7 {[%emt 0:00:00]} 32. Ra6 {[%emt 0:01:53]} Rc7 {[%emt 0:00:00]} 33. Ke3 {[%emt 0:04:33]} Bh2 {[%emt 0:00:00]} 34. f4 {[%emt 0:00:39]} Bg1+ {[%emt 0:00:00]} 35. Kd2 {[%emt 0:00:09]} Bh2 {[%emt 0:00:00]} 36. Kc3 {[%emt 0:00:58]} f6 {[%emt 0:00:19]} 37. Kd2 {[%emt 0:01:06]} Kf7 {[%emt 0:00:41]} 38. Kc3 {[%emt 0:01:01]} Ke8 {[%emt 0:00:31]} 39. Kb3 {[%emt 0:00:13]} Bg1 {[%emt 0:00:29]} 40. c4 {[%emt 0:00:51]} dxc4+ {[%emt 0:00:28]} 41. Kxc4 {[%emt 0:50:08]} Ke7 {[%emt 0:28:25]} 42. f5 {[%emt 0:00:00]} g5 {[%emt 0:12:04]} 43. Nc5 {[%emt 0:00:00]} Kd6 {[%emt 0:05:53]} 44. Ne6 {[%emt 0:00:00]} Rb7 {[%emt 0:02:13]} 45. Nd8 {[%emt 0:00:00]} Rb6 {[%emt 0:02:53]} 46. Nf7+ {[%emt 0:00:00]} Ke7 {[%emt 0:00:01]} 47. Rxa7+ {[%emt 0:00:00]} Kf8 {[%emt 0:00:02]} 48. Nd8 {[%emt 0:00:00]} Ke8 {[%emt 0:02:00]} 49. Ra8 {[%emt 0:00:00]} Kd7 {[%emt 0:00:29]} 50. Ne6 {[%emt 0:00:00]} Kd6 {[%emt 0:00:14]} 51. Re8 {[%emt 0:00:00]} Ra6 {[%emt 0:01:17]} 52. a5 {[%emt 0:00:00]} Ra7 {[%emt 0:00:15]} 53. Nd8 {[%emt 0:00:00]} Kd7 {[%emt 0:00:28]} 54. Rg8 {[%emt 0:00:00]} Kd6 {[%emt 0:00:46]} 55. Ne6 {[%emt 0:00:00]} Ke5 {[%emt 0:00:25]} 56. Rc8 {[%emt 0:00:00]} Ra6 {[%emt 0:00:38]} 57. Nc5 {[%emt 0:00:00]} Ra7 {[%emt 0:00:24]} 58. Rxc6 {[%emt 0:00:00]} Kxf5 {[%emt 0:00:02]} 59. a6 {[%emt 0:00:00]} g4 {[%emt 0:00:59]} 60. b5 {[%emt 0:00:00]} 1-0

[Event "FIDE Womens Grand Swiss 2023"]
[Site "Douglas/Isle of Man"]
[Date "2023.10.25"]
[Round "1.23"]
[White "Terbe, Julianna"]
[Black "Danielian, Elina"]
[Result "1/2-1/2"]
[ECO "B09"]
[WhiteElo "2266"]
[BlackElo "2416"]
[Annotator "RC"]
[PlyCount "103"]
[EventDate "2023.10.04"]
[EventType "swiss"]
[EventCountry "GBR"]
[SourceTitle "playchess.com"]
[Source "ChessBase"]
[SourceQuality "1"]
[TimeControl "40/6000+30:20/3000+30:900+30"]

1. e4 {[%emt 0:10:04]} d6 {[%emt 0:11:24]} 2. d4 {[%emt 0:00:06]} Nf6 {[%emt 0:01:31]} 3. Nc3 {[%emt 0:00:09]} g6 {[%emt 0:00:05]} 4. f4 {[%emt 0:00:11]} Bg7 {[%emt 0:00:05]} 5. Bd3 {[%emt 0:00:05]} O-O {[%emt 0:00:46]} 6. Nf3 {[%emt 0:00:03]} Nc6 {[%emt 0:00:33]} 7. Be2 {[%emt 0:00:52]} e5 {[%emt 0:10:34]} 8. dxe5 {[%emt 0:00:23]} dxe5 {[%emt 0:00:05]} 9. Qxd8 {[%emt 0:00:05]} Rxd8 {[%emt 0:00:03]} 10. fxe5 {[%emt 0:00:07]} Ng4 {[%emt 0:01:26]} 11. Nd5 {[%emt 0:00:12]} Be6 {[%emt 0:03:51]} 12. Bg5 {[%emt 0:12:29]} Rdc8 {[%emt 0:15:11]} 13. Nf6+ {[%emt 0:13:27]} Kh8 {[%emt 0:00:48]} 14. Nxg4 {[%emt 0:16:27]} Bxg4 {[%emt 0:00:03]} 15. O-O-O {[%emt 0:00:24]} Re8 {[%emt 0:04:21]} 16. h3 {[%emt 0:01:58]} Bxf3 {[%emt 0:00:47]} 17. gxf3 {[%emt 0:00:56]} Rxe5 {[%emt 0:03:55]} 18. h4 {[%emt 0:07:52]} h6 {[%emt 0:14:35]} 19. Be3 {[%emt 0:03:10]} f5 {[%emt 0:04:10]} 20. Bd3 {[%emt 0:08:20]} Nb4 {[%emt 0:03:44]} 21. Rhg1 {[%emt 0:08:59]} Nxd3+ {[%emt 0:02:10]} 22. Rxd3 {[%emt 0:03:13]} fxe4 {[%emt 0:00:49]} 23. fxe4 {[%emt 0:00:03]} Rxe4 {[%emt 0:18:23]} 24. Rxg6 {[%emt 0:00:24]} Kh7 {[%emt 0:03:14]} 25. h5 {[%emt 0:07:03]} Rae8 {[%emt 0:00:27]} 26. Bd2 {[%emt 0:06:11]} R8e7 {[%emt 0:01:18]} 27. Rgg3 {[%emt 0:00:24]} Rh4 {[%emt 0:02:39]} 28. Rh3 {[%emt 0:00:34]} Rxh3 {[%emt 0:00:40]} 29. Rxh3 {[%emt 0:00:04]} Bf6 {[%emt 0:00:15]} 30. Rg3 {[%emt 0:07:42]} Rg7 {[%emt 0:04:16]} 31. Be1 {[%emt 0:00:05]} Rg5 {[%emt 0:02:44]} 32. Rh3 {[%emt 0:03:01]} Rg1 {[%emt 0:00:22]} 33. Kd2 {[%emt 0:00:08]} Bxb2 {[%emt 0:00:29]} 34. Rb3 {[%emt 0:00:51]} Bd4 {[%emt 0:00:46]} 35. Rxb7 {[%emt 0:00:50]} Bb6 {[%emt 0:00:04]} 36. Ke2 {[%emt 0:00:33]} Rg5 {[%emt 0:00:17]} 37. a4 {[%emt 0:00:46]} a5 {[%emt 0:00:58]} 38. Bh4 {[%emt 0:00:42]} Rxh5 {[%emt 0:00:23]} 39. Bg3 {[%emt 0:00:02]} Rc5 {[%emt 0:00:17]} 40. Kd3 {[%emt 0:00:12]} Kg6 {[%emt 0:01:01]} 41. c4 {[%emt 0:26:10]} Rc6 {[%emt 0:30:36]} 42. Rb8 {[%emt 0:00:34]} Kf5 {[%emt 0:07:00]} 43. Rf8+ {[%emt 0:02:23]} Kg4 {[%emt 0:00:17]} 44. Rg8+ {[%emt 0:00:54]} Kf5 {[%emt 0:04:20]} 45. Rf8+ {[%emt 0:00:14]} Ke6 {[%emt 0:00:52]} 46. Rh8 {[%emt 0:05:10]} Kf7 {[%emt 0:00:40]} 47. Bf4 {[%emt 0:00:04]} Kg7 {[%emt 0:00:56]} 48. Be5+ {[%emt 0:00:08]} Kg6 {[%emt 0:00:07]} 49. Bf4 {[%emt 0:00:03]} Kg7 {[%emt 0:01:36]} 50. Be5+ {[%emt 0:00:05]} Kf7 {[%emt 0:00:13]} 51. Bf4 {[%emt 0:01:10]} Kg7 {[%emt 0:04:47]} 52. Ke4 {[%emt 0:00:16]} 1/2-1/2

[Event "FIDE Womens Grand Swiss 2023"]
[Site "Douglas/Isle of Man"]
[Date "2023.10.25"]
[Round "1.24"]
[White "Divya Deshmukh"]
[Black "Kanyamarala, Trisha"]
[Result "1-0"]
[ECO "B23"]
[WhiteElo "2408"]
[BlackElo "2184"]
[Annotator "RC"]
[PlyCount "135"]
[EventDate "2023.10.04"]
[EventType "swiss"]
[EventCountry "GBR"]
[SourceTitle "playchess.com"]
[Source "ChessBase"]
[SourceQuality "1"]
[TimeControl "40/6000+30:20/3000+30:900+30"]

1. e4 {[%emt 0:10:02]} c5 {[%emt 0:10:11]} 2. Nc3 {[%emt 0:00:03]} d6 {[%emt 0:01:26]} 3. f4 {[%emt 0:00:08]} Nc6 {[%emt 0:02:58]} 4. Nf3 {[%emt 0:00:11]} e6 {[%emt 0:02:51]} 5. Bb5 {[%emt 0:06:15]} Bd7 {[%emt 0:06:23]} 6. O-O {[%emt 0:06:10]} a6 {[%emt 0:02:56]} 7. Bxc6 {[%emt 0:03:49]} Bxc6 {[%emt 0:01:47]} 8. f5 {[%emt 0:04:48]} e5 {[%emt 0:04:54]} 9. d3 {[%emt 0:01:08]} h6 {[%emt 0:04:53]} 10. Ne2 {[%emt 0:13:50]} b5 {[%emt 0:05:23]} 11. b3 {[%emt 0:08:18]} Nf6 {[%emt 0:02:47]} 12. c4 {[%emt 0:00:40]} Be7 {[%emt 0:03:01]} 13. h3 {[%emt 0:07:32]} Rb8 {[%emt 0:09:16]} 14. Be3 {[%emt 0:06:01]} Qa5 {[%emt 0:05:08]} 15. Qc1 {[%emt 0:10:29]} Bd8 {[%emt 0:19:12]} 16. b4 {[%emt 0:03:49]} cxb4 {[%emt 0:06:40]} 17. c5 {[%emt 0:00:06]} Nd7 {[%emt 0:06:28]} 18. cxd6 {[%emt 0:03:12]} Bb6 {[%emt 0:00:30]} 19. Qxc6 {[%emt 0:00:59]} Bxe3+ {[%emt 0:00:08]} 20. Kh1 {[%emt 0:00:07]} Qb6 {[%emt 0:06:32]} 21. Nxe5 {[%emt 0:03:56]} Qxc6 {[%emt 0:00:15]} 22. Nxc6 {[%emt 0:00:01]} Rb6 {[%emt 0:00:28]} 23. Nxb4 {[%emt 0:00:11]} Rxd6 {[%emt 0:00:24]} 24. Nd5 {[%emt 0:01:33]} Bb6 {[%emt 0:02:01]} 25. a4 {[%emt 0:06:07]} O-O {[%emt 0:03:53]} 26. axb5 {[%emt 0:00:59]} axb5 {[%emt 0:00:05]} 27. Rfb1 {[%emt 0:02:59]} Rxd5 {[%emt 0:00:21]} 28. exd5 {[%emt 0:00:05]} Re8 {[%emt 0:00:17]} 29. Ra2 {[%emt 0:01:07]} Re5 {[%emt 0:02:53]} 30. Rxb5 {[%emt 0:01:06]} Rxf5 {[%emt 0:00:17]} 31. Ng3 {[%emt 0:02:52]} Re5 {[%emt 0:00:12]} 32. Re2 {[%emt 0:00:08]} Rg5 {[%emt 0:00:48]} 33. Re7 {[%emt 0:06:23]} Rxg3 {[%emt 0:00:35]} 34. Rxd7 {[%emt 0:00:01]} Bd4 {[%emt 0:00:28]} 35. Rb8+ {[%emt 0:01:22]} Kh7 {[%emt 0:00:07]} 36. Rxf7 {[%emt 0:01:25]} Rxd3 {[%emt 0:01:02]} 37. Rb1 {[%emt 0:00:32]} Be5 {[%emt 0:00:31]} 38. Rf5 {[%emt 0:00:33]} Bf6 {[%emt 0:00:37]} 39. Rbf1 {[%emt 0:00:29]} Kg6 {[%emt 0:00:22]} 40. R1f3 {[%emt 0:00:19]} Rd1+ {[%emt 0:00:24]} 41. Rf1 {[%emt 0:50:01]} Rd3 {[%emt 0:50:33]} 42. Kh2 {[%emt 0:00:27]} Be7 {[%emt 0:00:00]} 43. R1f3 {[%emt 0:00:00]} Rd1 {[%emt 0:00:00]} 44. Kg3 {[%emt 0:00:00]} Rd2 {[%emt 0:00:00]} 45. h4 {[%emt 0:00:00]} h5 {[%emt 0:00:00]} 46. Kh3 {[%emt 0:00:00]} Rd4 {[%emt 0:00:00]} 47. g3 {[%emt 0:00:00]} Rd2 {[%emt 0:00:00]} 48. Rf7 {[%emt 0:00:00]} Bf6 {[%emt 0:00:00]} 49. Rd7 {[%emt 0:00:00]} Be5 {[%emt 0:00:00]} 50. Re3 {[%emt 0:00:00]} Kf5 {[%emt 0:00:00]} 51. Ra3 {[%emt 0:00:00]} Ke4 {[%emt 0:00:00]} 52. Ra4+ {[%emt 0:00:00]} Kf5 {[%emt 0:00:00]} 53. Ra3 {[%emt 0:00:00]} Ke4 {[%emt 0:00:00]} 54. d6 {[%emt 0:00:00]} Kf5 {[%emt 0:00:00]} 55. Ra5 {[%emt 0:00:00]} Kf6 {[%emt 0:00:00]} 56. Rxe5 {[%emt 0:01:19]} Kxe5 {[%emt 0:00:00]} 57. Rxg7 {[%emt 0:00:03]} Kxd6 {[%emt 0:00:00]} 58. Rg6+ {[%emt 0:00:03]} Kc5 {[%emt 0:00:32]} 59. Rg5+ {[%emt 0:00:12]} Kd4 {[%emt 0:06:21]} 60. Rxh5 {[%emt 0:00:05]} Ke3 {[%emt 0:00:04]} 61. Re5+ {[%emt 0:15:47]} Kf2 {[%emt 0:15:09]} 62. h5 {[%emt 0:00:38]} Rd3 {[%emt 0:00:55]} 63. Rf5+ {[%emt 0:00:08]} Kg1 {[%emt 0:00:31]} 64. Kh4 {[%emt 0:00:34]} Kg2 {[%emt 0:00:18]} 65. h6 {[%emt 0:00:11]} Rd6 {[%emt 0:00:13]} 66. h7 {[%emt 0:00:18]} Rd8 {[%emt 0:00:33]} 67. Rh5 {[%emt 0:00:12]} Rh8 {[%emt 0:00:13]} 68. g4 {[%emt 0:00:04]} 1-0

[Event "FIDE Womens Grand Swiss 2023"]
[Site "Douglas/Isle of Man"]
[Date "2023.10.25"]
[Round "1.25"]
[White "Nassr, Lina"]
[Black "Garifullina, Leya"]
[Result "0-1"]
[ECO "B14"]
[WhiteElo "2066"]
[BlackElo "2402"]
[Annotator "RC"]
[PlyCount "54"]
[EventDate "2023.10.04"]
[EventType "swiss"]
[EventCountry "GBR"]
[SourceTitle "playchess.com"]
[Source "ChessBase"]
[SourceQuality "1"]
[TimeControl "40/6000+30:20/3000+30:900+30"]

1. d4 {[%emt 0:10:06]} Nf6 {[%emt 0:10:27]} 2. Nf3 {[%emt 0:00:24]} d5 {[%emt 0:00:10]} 3. e3 {[%emt 0:00:40]} c5 {[%emt 0:00:19]} 4. c4 {[%emt 0:01:39]} cxd4 {[%emt 0:01:30]} 5. exd4 {[%emt 0:00:16]} g6 {[%emt 0:01:15]} 6. Nc3 {[%emt 0:01:45]} Bg7 {[%emt 0:01:03]} 7. h3 {[%emt 0:01:47]} O-O {[%emt 0:02:05]} 8. Bf4 {[%emt 0:02:28]} Nc6 {[%emt 0:04:12]} 9. c5 {[%emt 0:07:54]} Ne4 {[%emt 0:07:52]} 10. Rc1 {[%emt 0:11:44]} Nxc3 {[%emt 0:06:23]} 11. Rxc3 {[%emt 0:06:14]} Bf5 {[%emt 0:09:13]} 12. Bb5 {[%emt 0:07:42]} Qa5 {[%emt 0:13:57]} 13. Bxc6 {[%emt 0:03:17]} bxc6 {[%emt 0:00:11]} 14. a3 {[%emt 0:09:50]} Qa6 {[%emt 0:05:58]} 15. Qe2 {[%emt 0:08:12]} Qxe2+ {[%emt 0:01:53]} 16. Kxe2 {[%emt 0:00:05]} Be4 {[%emt 0:01:10]} 17. Rd1 {[%emt 0:02:23]} f6 {[%emt 0:01:27]} 18. g4 {[%emt 0:17:00]} e5 {[%emt 0:02:02]} 19. Be3 {[%emt 0:05:07]} f5 {[%emt 0:08:11]} 20. Ng5 {[%emt 0:10:30]} f4 {[%emt 0:01:17]} 21. f3 {[%emt 0:01:14]} fxe3 {[%emt 0:00:24]} 22. fxe4 {[%emt 0:00:01]} exd4 {[%emt 0:00:22]} 23. Rb3 {[%emt 0:00:23]} Rf2+ {[%emt 0:00:52]} 24. Kd3 {[%emt 0:01:02]} h6 {[%emt 0:01:00]} 25. Ne6 {[%emt 0:00:41]} dxe4+ {[%emt 0:00:11]} 26. Kc4 {[%emt 0:00:33]} Rc2+ {[%emt 0:00:16]} 27. Kb4 {[%emt 0:00:19]} a5+ {[%emt 0:00:27]} 0-1

[Event "FIDE Womens Grand Swiss 2023"]
[Site "Douglas/Isle of Man"]
[Date "2023.10.26"]
[Round "2.8"]
[White "Goryachkina, Aleksandra"]
[Black "Guichard, Pauline"]
[Result "1/2-1/2"]
[ECO "A28"]
[WhiteElo "2558"]
[BlackElo "2358"]
[Annotator "TA"]
[PlyCount "116"]
[EventDate "2023.10.04"]
[EventType "swiss"]
[EventCountry "GBR"]
[SourceTitle "playchess.com"]
[Source "ChessBase"]
[SourceQuality "1"]
[TimeControl "40/6000+30:20/3000+30:900+30"]

{[%evp 9,116,0,1,2,15,11,14,0,26,0,1,0,0,0,6,6,10,6,16,0,0,-3,-5,-12,-5,-2,21,-3,25,0,42,30,37,48,45,25,19,8,22,6,27,12,13,0,5,0,0,0,39,51,47,31,33,26,44,18,33,17,20,9,9,16,27,21,427,0,0,0,0,0,81,87,66,0,0,0,151,0,0,0,0,0,0,0,0,0,0,0,0,0,0,0,0,0,0,0,0,0,0,0,0,0,0,0,0,0,0,0,0]} 1. c4 {[%emt 0:10:09]} Nf6 {[%emt 0:10:14]} 2. Nc3 {[%emt 0:00:13]} e5 {[%emt 0:00:15]} 3. Nf3 {[%emt 0:00:31]} Nc6 {[%emt 0:00:15]} 4. e4 {[%emt 0:00:50]} Bb4 {[%emt 0:00:58]} 5. d3 {[%emt 0:00:42]} d6 {[%emt 0:00:10]} 6. a3 {[%emt 0:00:18] A28: English Opening: Four Knights Variation.} Bc5 {[%emt 0:00:23]} 7. b4 {[%emt 0:01:47]} Bb6 {[%emt 0:00:39]} 8. Na4 {[%emt 0:00:47]} Bg4 {[%emt 0:01:14]} 9. Be2 {[%emt 0:05:40]} Bxf3 {[%emt 0:01:20]} 10. Bxf3 {[%emt 0:00:24]} Bd4 {[%emt 0:00:07]} 11. Rb1 {[%emt 0:00:34]} a6 {[%emt 0:00:09]} 12. Bd2 {[%emt 0:01:10]} Ba7 {[%emt 0:02:52]} 13. O-O {[%emt 0:03:10]} Nd4 {[%emt 0:06:44] [#]} 14. Kh1 $146 {[%emt 0:01:32]} ({Predecessor:} 14. Nc3 O-O 15. Kh1 b5 16. Be2 c6 17. a4 h6 18. f4 bxc4 19. dxc4 exf4 20. Rxf4 {1-0 Deac,B (2627)-Palac,M (2525) FIDE World Cup Europe Hybrid Qual 2021 (2.2)}) 14... O-O {[%emt 0:23:10]} 15. Be2 {[%emt 0:01:26]} Qd7 {[%emt 0:02:35] Hoping for ...Nxe2.} 16. Nc3 {[%emt 0:01:00]} c6 {[%emt 0:00:10]} 17. f4 {[%emt 0:10:20]} Nxe2 {[%emt 0:08:31]} 18. Qxe2 {[%emt 0:01:07]} (18. Nxe2 {simplifies} Kh8 19. fxe5 dxe5 20. Rf3) 18... Qg4 {[%emt 0:00:21]} 19. Qe1 {[%emt 0:09:07]} (19. h3 {simplifies} Qxe2 20. Nxe2 Nd7 21. f5) 19... Nh5 {[%emt 0:05:39][%cal Rh5f4]} 20. f5 {[%emt 0:07:41]} Nf4 {[%emt 0:04:21]} 21. Bxf4 {[%emt 0:00:52]} exf4 {[%emt 0:00:05]} 22. Qe2 {[%emt 0:01:09]} Qh4 {[%emt 0:07:52]} 23. Qf3 {[%emt 0:02:01]} (23. Rf3 {simplifies} Qf6 24. Qc2 g5 25. fxg6 fxg6 26. c5) 23... g5 {[%emt 0:03:06]} 24. Ne2 {[%emt 0:04:57]} Be3 {[%emt 0:03:14] ...g4 is the strong threat.} 25. g3 $1 {[%emt 0:00:55]} fxg3 {[%emt 0:00:44]} 26. Nxg3 {[%emt 0:00:46]} (26. Qxg3 {simplifies} Qxg3 27. hxg3 Rae8 28. Kg2) 26... Bf4 {[%emt 0:00:20][%cal Od6d5]} 27. Rg1 {[%emt 0:02:04]} f6 {[%emt 0:13:41]} 28. Rg2 {[%emt 0:01:52]} Bxg3 {[%emt 0:01:18]} 29. Rxg3 {[%emt 0:00:40]} Qh6 $1 {[%emt 0:01:37]} 30. Rbg1 {[%emt 0:01:23]} Kh8 {[%emt 0:02:24]} 31. Qf2 {[%emt 0:04:17]} Rad8 {[%emt 0:04:10]} 32. Qb2 {[%emt 0:09:58]} Qg7 {[%emt 0:00:31]} 33. h4 {[%emt 0:00:33][%cal Rh4g5]} Qh6 {[%emt 0:05:37]} 34. Qh2 {[%emt 0:01:00][%cal Rh4g5]} gxh4 {[%emt 0:00:25]} 35. Rg4 {[%emt 0:00:39]} Rg8 {[%emt 0:01:59] [#]} 36. Qxd6 $1 {[%emt 0:03:43][%cal Oa3a4][%mdl 64] Deflection, Back Rank} h3 $2 {[%emt 0:00:46][%mdl 8192]} (36... Rge8 $11 {and Black has nothing to worry.} 37. Qh2 Rg8) (36... Rgf8 37. Qh2) 37. Qg3 $2 {[%emt 0:09:58]} ({Only move:} 37. e5 $1 $18) 37... Rxg4 $11 {[%emt 0:00:25]} 38. Qxg4 {[%emt 0:00:01][%mdl 4096] Endgame KQR-KQR} h2 {[%emt 0:00:33]} 39. Rg3 {[%emt 0:00:47]} b5 {[%emt 0:00:15] [#]} (39... b6 $1 $11 {remains equal.}) 40. c5 $1 $16 {[%emt 0:02:36]} Ra8 {[%emt 0:00:49]} 41. Qh3 {[%emt 0:58:35] White is more active.} (41. Qe2 $1 $14) 41... Qc1+ $11 {[%emt 0:25:41]} 42. Kxh2 {[%emt 0:00:00] Threatens to win with Qh4.} Qxa3 $2 {[%emt 0:00:45] [#]} (42... Qd2+ $1 $11 43. Kh1 (43. Rg2 Qf4+ 44. Kg1 Qc1+ 45. Kh2 Qf4+ 46. Kh1 Qf1+ 47. Kh2 Qf4+ $11) 43... a5) 43. Qh6 $2 {[%emt 0:00:00]} (43. Qg4 $1 $16 {[%csl Gg3][%cal Rg4g7]} Qa2+ 44. Kh3 (44. Rg2 Qf7 $16)) 43... Qb2+ $1 {[%emt 0:10:56] The position is equal.} 44. Rg2 {[%emt 0:00:00][%csl Gg2][%cal Rh6g7]} (44. Kh3 $5 Rg8 $8 45. Rxg8+ Kxg8 46. Qf4 $11) 44... Qe5+ {[%emt 0:00:07]} 45. Kh3 {[%emt 0:00:00][%csl Gg2][%cal Rh6g7]} Rg8 {[%emt 0:00:16] Wards off Qg7+} 46. Rxg8+ {[%emt 0:00:00]} Kxg8 {[%emt 0:00:06] KQ-KQ} 47. Qe3 {[%emt 0:00:00] d4 would be deadly.} Qc3 {[%emt 0:05:17] Against d4} 48. Qg3+ {[%emt 0:00:00]} Kf7 {[%emt 0:03:08]} 49. Qc7+ {[%emt 0:00:00]} Kg8 {[%emt 0:00:11]} 50. Qd8+ {[%emt 0:00:00]} Kf7 {[%emt 0:01:16]} 51. Qd7+ {[%emt 0:00:00]} Kg8 {[%emt 0:03:50]} 52. Qd6 {[%emt 0:00:00]} Qa1 {[%emt 0:00:59]} 53. Kg2 {[%emt 0:00:00]} Qb2+ {[%emt 0:00:46]} 54. Kf3 {[%emt 0:00:00]} Qa1 {[%emt 0:00:40]} 55. Qxc6 {[%emt 0:01:28]} Qf1+ {[%emt 0:00:45]} 56. Ke3 {[%emt 0:00:07] Black must now prevent Qe8+.} Qe1+ {[%emt 0:00:23]} 57. Kd4 {[%emt 0:01:20]} Qa1+ $1 {[%emt 0:00:15]} 58. Ke3 {[%emt 0:00:10]} Qe1+ {[%emt 0:00:04] Weighted Error Value: White=0.24 (precise) /Black=0.23 (precise)} 1/2-1/2